[Event "ROU-chT 1st League 2019"]
[Site "Mamaia"]
[Date "2019.09.26"]
[Round "6.22"]
[White "Cosma, Ioan"]
[Black "Prodileanu, Adrian"]
[Result "1-0"]
[ECO "A46"]
[WhiteElo "2394"]
[BlackElo "2236"]
[Annotator "NA"]
[PlyCount "167"]
[EventDate "2019.09.21"]
[EventType "team-tourn"]
[EventCountry "ROU"]
[SourceTitle "playchess.com"]
[Source "ChessBase"]
[SourceQuality "1"]
[TimeControl "40/5400+30:1800+30"]

1. d4 {[%emt 0:00:00]} Nf6 {[%emt 0:00:00]} 2. Nf3 {[%emt 0:00:00]} e6 {[%emt 0:00:04]} 3. g3 {[%emt 0:00:03]} c5 {[%emt 0:00:17]} 4. Bg2 {[%emt 0:00:08]} Nc6 {[%emt 0:00:14]} 5. O-O {[%emt 0:00:23]} d5 {[%emt 0:00:16]} 6. c4 {[%emt 0:00:49]} dxc4 {[%emt 0:00:21]} 7. Ne5 {[%emt 0:00:56]} Bd7 {[%emt 0:00:44]} 8. Na3 {[%emt 0:00:09]} cxd4 {[%emt 0:00:28]} 9. Naxc4 {[%emt 0:00:17]} Bc5 {[%emt 0:00:13]} 10. Bf4 {[%emt 0:07:34]} O-O {[%emt 0:01:54]} 11. Qb3 {[%emt 0:04:09]} Rc8 {[%emt 0:01:43]} 12. Qxb7 {[%emt 0:03:59]} Nxe5 {[%emt 0:00:14]} 13. Nxe5 {[%emt 0:02:15]} Rb8 {[%emt 0:00:21]} 14. Qxb8 {[%emt 0:00:27]} Qxb8 {[%emt 0:00:07]} 15. Nxd7 {[%emt 0:00:04]} Qxb2 {[%emt 0:00:12]} 16. Nxc5 {[%emt 0:03:54]} Qxe2 {[%emt 0:01:35]} 17. Rfe1 {[%emt 0:02:44]} Qb5 {[%emt 0:05:00]} 18. Nb3 {[%emt 0:02:45]} Rd8 {[%emt 0:03:58]} 19. Rad1 {[%emt 0:02:48]} d3 {[%emt 0:07:53]} 20. Bf1 {[%emt 0:08:06]} Qa4 {[%emt 0:14:20]} 21. Bg5 {[%emt 0:10:12]} Qxa2 {[%emt 0:02:28]} 22. Bxf6 {[%emt 0:00:43]} gxf6 {[%emt 0:00:49]} 23. Nc1 {[%emt 0:00:06]} Qa5 {[%emt 0:04:20]} 24. Nxd3 {[%emt 0:00:12]} Rd4 {[%emt 0:15:16]} 25. Ra1 {[%emt 0:07:52]} Ra4 {[%emt 0:08:55]} 26. Rab1 {[%emt 0:02:01]} Kg7 {[%emt 0:00:49]} 27. Rec1 {[%emt 0:02:40]} Ra3 {[%emt 0:09:33]} 28. Rc2 {[%emt 0:10:51]} Rc3 {[%emt 0:04:09]} 29. Rcb2 {[%emt 0:00:53]} Qa3 {[%emt 0:04:11]} 30. Nf4 {[%emt 0:01:35]} Rc1 {[%emt 0:01:28]} 31. Rxc1 {[%emt 0:08:27]} Qxb2 {[%emt 0:00:11]} 32. Nd3 {[%emt 0:00:05]} Qd2 {[%emt 0:01:14]} 33. Rc4 {[%emt 0:01:58]} Qa5 {[%emt 0:05:32]} 34. Nc5 {[%emt 0:01:15]} Qd2 {[%emt 0:02:44]} 35. Na6 {[%emt 0:01:45]} Qd6 {[%emt 0:01:40]} 36. Rc7 {[%emt 0:00:57]} Qb6 {[%emt 0:00:42]} 37. Rd7 {[%emt 0:00:10]} h6 {[%emt 0:00:36]} 38. h4 {[%emt 0:02:51]} f5 {[%emt 0:01:02]} 39. h5 {[%emt 0:02:46]} f4 {[%emt 0:01:08]} 40. gxf4 {[%emt 0:00:00]} Qa5 {[%emt 0:00:00]} 41. Be2 {[%emt 0:14:52]} Qe1+ {[%emt 0:03:27]} 42. Bf1 {[%emt 0:00:05]} Qa5 {[%emt 0:00:04]} 43. Rxa7 {[%emt 0:03:40]} Qxh5 {[%emt 0:01:34]} 44. Nc7 {[%emt 0:00:57]} Qg4+ {[%emt 0:02:51]} 45. Bg2 {[%emt 0:00:06]} Kg6 {[%emt 0:02:23]} 46. Ra3 {[%emt 0:03:41]} Qxf4 {[%emt 0:03:45]} 47. Rg3+ {[%emt 0:00:07]} Kh7 {[%emt 0:00:08]} 48. Nb5 {[%emt 0:03:50]} Qe5 {[%emt 0:05:30]} 49. Nc3 {[%emt 0:00:25]} f5 {[%emt 0:00:45]} 50. Rd3 {[%emt 0:05:57]} Kg7 {[%emt 0:02:01]} 51. Bf1 {[%emt 0:00:30]} Kf6 {[%emt 0:01:18]} 52. Ne2 {[%emt 0:00:30]} Qc5 {[%emt 0:02:43]} 53. Rc3 {[%emt 0:01:28]} Qb4 {[%emt 0:01:02]} 54. f4 {[%emt 0:00:57]} Qb6+ {[%emt 0:01:02]} 55. Kg2 {[%emt 0:00:13]} e5 {[%emt 0:00:56]} 56. Rh3 {[%emt 0:01:15]} Qb7+ {[%emt 0:00:37]} 57. Kh2 {[%emt 0:00:51]} exf4 {[%emt 0:00:22]} 58. Bg2 {[%emt 0:04:51]} Qc7 {[%emt 0:01:22]} 59. Bf3 {[%emt 0:00:12]} Kg5 {[%emt 0:00:58]} 60. Kg2 {[%emt 0:01:04]} Qe5 {[%emt 0:00:13]} 61. Rh5+ {[%emt 0:00:26]} Kg6 {[%emt 0:00:16]} 62. Rh1 {[%emt 0:00:05]} Kg5 {[%emt 0:01:12]} 63. Rb1 {[%emt 0:01:22]} Kh4 {[%emt 0:01:29]} 64. Rb6 {[%emt 0:02:02]} Kg5 {[%emt 0:00:36]} 65. Rb4 {[%emt 0:02:41]} Qd6 {[%emt 0:02:02]} 66. Rd4 {[%emt 0:00:22]} Qc7 {[%emt 0:00:57]} 67. Rd5 {[%emt 0:00:16]} Kf6 {[%emt 0:00:33]} 68. Nd4 {[%emt 0:00:21]} Qg7+ {[%emt 0:00:52]} 69. Kf1 {[%emt 0:00:44]} Qg5 {[%emt 0:02:03]} 70. Rd6+ {[%emt 0:00:13]} Ke5 {[%emt 0:00:40]} 71. Rd5+ {[%emt 0:00:03]} Kf6 {[%emt 0:00:07]} 72. Ke2 {[%emt 0:00:02]} Kg6 {[%emt 0:00:49]} 73. Rd6+ {[%emt 0:00:45]} Kh7 {[%emt 0:00:25]} 74. Kd3 {[%emt 0:00:47]} Qg1 {[%emt 0:00:43]} 75. Nxf5 {[%emt 0:00:43]} Qb1+ {[%emt 0:01:14]} 76. Kd4 {[%emt 0:00:13]} Qb4+ {[%emt 0:01:26]} 77. Ke5 {[%emt 0:00:19]} Qb2+ {[%emt 0:00:19]} 78. Nd4 {[%emt 0:00:18]} Kg7 {[%emt 0:01:12]} 79. Bh5 {[%emt 0:00:44]} Qa1 {[%emt 0:00:55]} 80. Rd7+ {[%emt 0:00:17]} Kh8 {[%emt 0:00:21]} 81. Rd8+ {[%emt 0:00:28]} Kg7 {[%emt 0:00:21]} 82. Rd7+ {[%emt 0:00:04]} Kh8 {[%emt 0:00:04]} 83. Kf6 {[%emt 0:00:37]} Qa5 {[%emt 0:01:05]} 84. Ne6 {[%emt 0:00:54]} 1-0

[Event "ROU-chT 1st League 2019"]
[Site "Mamaia"]
[Date "2019.09.26"]
[Round "6.23"]
[White "Micu, Iulian"]
[Black "Itkis, Boris"]
[Result "1/2-1/2"]
[ECO "A46"]
[WhiteElo "2165"]
[BlackElo "2323"]
[Annotator "NA"]
[PlyCount "105"]
[EventDate "2019.09.21"]
[EventType "team-tourn"]
[EventCountry "ROU"]
[SourceTitle "playchess.com"]
[Source "ChessBase"]
[SourceQuality "1"]
[TimeControl "40/5400+30:1800+30"]

1. d4 {[%emt 0:00:00]} Nf6 {[%emt 0:00:00]} 2. Nf3 {[%emt 0:00:00]} e6 {[%emt 0:00:11]} 3. Bf4 {[%emt 0:00:20]} c5 {[%emt 0:02:45]} 4. e3 {[%emt 0:00:40]} b6 {[%emt 0:01:24]} 5. Nbd2 {[%emt 0:02:30]} Bb7 {[%emt 0:00:15]} 6. Bd3 {[%emt 0:02:42]} Be7 {[%emt 0:00:05]} 7. h3 {[%emt 0:00:23]} cxd4 {[%emt 0:00:06]} 8. exd4 {[%emt 0:00:21]} O-O {[%emt 0:00:08]} 9. O-O {[%emt 0:00:14]} d6 {[%emt 0:00:04]} 10. Re1 {[%emt 0:04:48]} Nbd7 {[%emt 0:00:33]} 11. Qe2 {[%emt 0:01:07]} a6 {[%emt 0:00:04]} 12. c3 {[%emt 0:01:22]} Re8 {[%emt 0:00:04]} 13. Nc4 {[%emt 0:02:05]} Qc7 {[%emt 0:00:07]} 14. a4 {[%emt 0:01:21]} Bf8 {[%emt 0:02:09]} 15. Bg3 {[%emt 0:05:11]} h6 {[%emt 0:01:28]} 16. Rac1 {[%emt 0:07:18]} Bc6 {[%emt 0:02:30]} 17. b3 {[%emt 0:01:50]} b5 {[%emt 0:04:23]} 18. Ncd2 {[%emt 0:01:08]} Qb7 {[%emt 0:01:48]} 19. axb5 {[%emt 0:00:33]} axb5 {[%emt 0:00:05]} 20. Ra1 {[%emt 0:00:26]} b4 {[%emt 0:08:22]} 21. c4 {[%emt 0:04:57]} Ra7 {[%emt 0:04:08]} 22. Rxa7 {[%emt 0:01:48]} Qxa7 {[%emt 0:00:02]} 23. Bb1 {[%emt 0:01:09]} Qb7 {[%emt 0:10:13]} 24. Qd3 {[%emt 0:07:58]} g6 {[%emt 0:03:01]} 25. Nh4 {[%emt 0:01:00]} Qa8 {[%emt 0:02:19]} 26. Nxg6 {[%emt 0:04:39]} fxg6 {[%emt 0:00:08]} 27. Qxg6+ {[%emt 0:00:01]} Bg7 {[%emt 0:00:08]} 28. Bxd6 {[%emt 0:00:09]} Nf8 {[%emt 0:02:14]} 29. Qg3 {[%emt 0:01:09]} Qb7 {[%emt 0:01:55]} 30. f3 {[%emt 0:02:50]} Qd7 {[%emt 0:14:27]} 31. c5 {[%emt 0:17:48]} Qf7 {[%emt 0:02:01]} 32. Nc4 {[%emt 0:00:40]} N6d7 {[%emt 0:11:54]} 33. Ne5 {[%emt 0:01:53]} Nxe5 {[%emt 0:00:06]} 34. dxe5 {[%emt 0:00:30]} Bd5 {[%emt 0:05:01]} 35. f4 {[%emt 0:01:44]} Ra8 {[%emt 0:00:19]} 36. Be4 {[%emt 0:02:07]} Bxe4 {[%emt 0:05:47]} 37. Rxe4 {[%emt 0:00:10]} Ra1+ {[%emt 0:00:41]} 38. Kh2 {[%emt 0:00:31]} Qb7 {[%emt 0:00:06]} 39. Qf3 {[%emt 0:00:41]} Rc1 {[%emt 0:01:31]} 40. Re3 {[%emt 0:00:00]} Qxf3 {[%emt 0:00:00]} 41. Rxf3 {[%emt 0:04:11]} Nd7 {[%emt 0:00:30]} 42. Rd3 {[%emt 0:01:44]} Nxc5 {[%emt 0:01:19]} 43. Rd4 {[%emt 0:03:14]} Nxb3 {[%emt 0:08:40]} 44. Rxb4 {[%emt 0:00:11]} Na5 {[%emt 0:00:19]} 45. Rb8+ {[%emt 0:07:14]} Kf7 {[%emt 0:00:32]} 46. g4 {[%emt 0:00:33]} Nc4 {[%emt 0:02:33]} 47. Rb7+ {[%emt 0:02:31]} Kg8 {[%emt 0:00:49]} 48. Rc7 {[%emt 0:00:52]} Rc2+ {[%emt 0:00:15]} 49. Kg3 {[%emt 0:00:16]} Ne3 {[%emt 0:01:10]} 50. Rxc2 {[%emt 0:10:07]} Nxc2 {[%emt 0:00:09]} 51. f5 {[%emt 0:00:19]} Nd4 {[%emt 0:00:30]} 52. Kf4 {[%emt 0:00:23]} Kf7 {[%emt 0:00:05]} 53. h4 {[%emt 0:02:01]} 1/2-1/2

[Event "ROU-chT 1st League 2019"]
[Site "Mamaia"]
[Date "2019.09.26"]
[Round "6.24"]
[White "Ileana, George"]
[Black "Jiroveanu, George"]
[Result "1/2-1/2"]
[ECO "A04"]
[WhiteElo "2349"]
[BlackElo "2241"]
[Annotator "NA"]
[PlyCount "78"]
[EventDate "2019.09.21"]
[EventType "team-tourn"]
[EventCountry "ROU"]
[SourceTitle "playchess.com"]
[Source "ChessBase"]
[SourceQuality "1"]
[TimeControl "40/5400+30:1800+30"]

1. Nf3 {[%emt 0:00:00]} f5 {[%emt 0:00:00]} 2. g3 {[%emt 0:00:00]} Nf6 {[%emt 0:00:00]} 3. Bg2 {[%emt 0:00:02]} e6 {[%emt 0:00:54]} 4. d4 {[%emt 0:00:10]} d5 {[%emt 0:00:34]} 5. O-O {[%emt 0:00:06]} Bd6 {[%emt 0:01:20]} 6. c4 {[%emt 0:00:06]} c6 {[%emt 0:00:08]} 7. b3 {[%emt 0:00:18]} O-O {[%emt 0:00:48]} 8. Bb2 {[%emt 0:00:05]} Ne4 {[%emt 0:02:21]} 9. Nbd2 {[%emt 0:01:07]} Nd7 {[%emt 0:02:41]} 10. e3 {[%emt 0:02:14]} Qf6 {[%emt 0:20:54]} 11. Ne1 {[%emt 0:00:25]} Nxd2 {[%emt 0:02:00]} 12. Qxd2 {[%emt 0:00:05]} Qh6 {[%emt 0:01:55]} 13. Nd3 {[%emt 0:00:24]} g5 {[%emt 0:01:39]} 14. Rae1 {[%emt 0:05:05]} g4 {[%emt 0:07:22]} 15. Qc1 {[%emt 0:00:10]} Qg7 {[%emt 0:07:27]} 16. Ba3 {[%emt 0:00:07]} Qe7 {[%emt 0:00:19]} 17. Bxd6 {[%emt 0:00:18]} Qxd6 {[%emt 0:00:06]} 18. Nf4 {[%emt 0:00:21]} Nf6 {[%emt 0:00:24]} 19. cxd5 {[%emt 0:01:11]} cxd5 {[%emt 0:00:37]} 20. Qc5 {[%emt 0:00:47]} Qxc5 {[%emt 0:00:28]} 21. dxc5 {[%emt 0:00:06]} Bd7 {[%emt 0:01:05]} 22. Rc1 {[%emt 0:00:33]} Kf7 {[%emt 0:01:00]} 23. Rfd1 {[%emt 0:03:05]} Bc6 {[%emt 0:01:13]} 24. Nd3 {[%emt 0:02:03]} Ke7 {[%emt 0:01:31]} 25. a4 {[%emt 0:05:51]} Rfc8 {[%emt 0:06:56]} 26. Kf1 {[%emt 0:00:40]} Rc7 {[%emt 0:01:51]} 27. Ke2 {[%emt 0:00:26]} Rac8 {[%emt 0:01:18]} 28. Rd2 {[%emt 0:00:57]} a5 {[%emt 0:11:30]} 29. Rb2 {[%emt 0:00:56]} Nd7 {[%emt 0:01:05]} 30. h3 {[%emt 0:00:24]} gxh3 {[%emt 0:00:53]} 31. Bxh3 {[%emt 0:00:06]} Kf6 {[%emt 0:05:45]} 32. g4 {[%emt 0:04:36]} fxg4 {[%emt 0:00:28]} 33. Bxg4 {[%emt 0:00:05]} Ne5 {[%emt 0:00:41]} 34. Nxe5 {[%emt 0:07:58]} Kxe5 {[%emt 0:00:10]} 35. f4+ {[%emt 0:00:33]} Kf6 {[%emt 0:00:09]} 36. Kd3 {[%emt 0:00:11]} Rg8 {[%emt 0:03:19]} 37. Bf3 {[%emt 0:09:13]} e5 {[%emt 0:01:49]} 38. fxe5+ {[%emt 0:00:43]} Kxe5 {[%emt 0:00:07]} 39. Rh2 {[%emt 0:00:18]} Rg5 {[%emt 0:03:13] Ke4+} 1/2-1/2

[Event "ROU-chT 1st League 2019"]
[Site "Mamaia"]
[Date "2019.09.26"]
[Round "6.25"]
[White "Istratescu, Andrei"]
[Black "Oltean, Dorel"]
[Result "1-0"]
[ECO "B39"]
[WhiteElo "2556"]
[BlackElo "2333"]
[Annotator "ChessBase"]
[PlyCount "55"]
[EventDate "2019.09.21"]
[EventType "team-tourn"]
[EventCountry "ROU"]
[SourceTitle "playchess.com"]
[Source "ChessBase"]
[SourceQuality "1"]
[TimeControl "40/5400+30:1800+30"]

1. c4 {[%emt 0:00:00]} c5 {[%emt 0:00:01]} 2. Nf3 {[%emt 0:00:00]} g6 {[%emt 0:00:30]} 3. d4 {[%emt 0:02:33]} cxd4 {[%emt 0:00:20]} 4. Nxd4 {[%emt 0:00:02]} Bg7 {[%emt 0:00:11]} 5. e4 {[%emt 0:00:19]} Nc6 {[%emt 0:00:59]} 6. Be3 {[%emt 0:00:15]} Nf6 {[%emt 0:00:46]} 7. Nc3 {[%emt 0:01:16]} Ng4 {[%emt 0:01:10]} 8. Qxg4 {[%emt 0:00:56]} Bxd4 {[%emt 0:00:27]} 9. Bxd4 {[%emt 0:00:13]} Nxd4 {[%emt 0:00:09]} 10. O-O-O {[%emt 0:00:05]} e5 {[%emt 0:07:02]} 11. Qg3 {[%emt 0:02:09]} d6 {[%emt 0:05:12]} 12. f4 {[%emt 0:01:12]} Qa5 {[%emt 0:12:05]} 13. fxe5 {[%emt 0:07:05]} dxe5 {[%emt 0:01:47]} 14. Nd5 {[%emt 0:00:40]} Nc6 {[%emt 0:21:39]} 15. a3 {[%emt 0:21:54]} Be6 {[%emt 0:15:32]} 16. Nf6+ {[%emt 0:16:47]} Kf8 {[%emt 0:03:28]} 17. h4 {[%emt 0:00:25]} h5 {[%emt 0:02:15]} 18. Bd3 {[%emt 0:03:03]} a6 {[%emt 0:02:20]} 19. Kb1 {[%emt 0:05:19]} Kg7 {[%emt 0:03:14]} 20. Rhf1 {[%emt 0:05:47]} b5 {[%emt 0:14:35]} 21. Nd5 {[%emt 0:01:21]} bxc4 {[%emt 0:02:18]} 22. Bxc4 {[%emt 0:00:03]} Rab8 {[%emt 0:03:15]} 23. Rf2 {[%emt 0:04:23]} Qc5 {[%emt 0:00:46]} 24. Bxa6 {[%emt 0:05:51]} Rb3 {[%emt 0:00:08]} 25. Rxf7+ {[%emt 0:00:43]} Bxf7 {[%emt 0:00:17]} 26. Qxb3 {[%emt 0:00:02]} Nd4 {[%emt 0:00:23]} 27. Qc3 {[%emt 0:01:29]} Qa7 {[%emt 0:00:03]} 28. Qc7 {[%emt 0:00:36]} 1-0

[Event "ROU-chT 1st League 2019"]
[Site "Mamaia"]
[Date "2019.09.26"]
[Round "6.26"]
[White "Florescu, Codrut-Constantin"]
[Black "Aczel, Gergely"]
[Result "0-1"]
[ECO "A80"]
[WhiteElo "2286"]
[BlackElo "2530"]
[Annotator "ChessBase"]
[PlyCount "104"]
[EventDate "2019.09.21"]
[EventType "team-tourn"]
[EventCountry "ROU"]
[SourceTitle "playchess.com"]
[Source "ChessBase"]
[SourceQuality "1"]
[TimeControl "40/5400+30:1800+30"]

1. d4 {[%emt 0:00:00]} f5 {[%emt 0:00:00]} 2. Nf3 {[%emt 0:00:20]} Nf6 {[%emt 0:00:00]} 3. c3 {[%emt 0:02:34]} e6 {[%emt 0:00:02]} 4. Bg5 {[%emt 0:00:11]} h6 {[%emt 0:01:53]} 5. Bxf6 {[%emt 0:00:14]} Qxf6 {[%emt 0:00:03]} 6. Nbd2 {[%emt 0:00:46]} d5 {[%emt 0:02:39]} 7. Ne5 {[%emt 0:09:14]} Bd6 {[%emt 0:01:30]} 8. f4 {[%emt 0:01:33]} Qh4+ {[%emt 0:22:11]} 9. g3 {[%emt 0:00:09]} Qh5 {[%emt 0:00:05]} 10. Qa4+ {[%emt 0:08:08]} Nd7 {[%emt 0:18:46]} 11. Ndf3 {[%emt 0:09:42]} c6 {[%emt 0:04:23]} 12. Bg2 {[%emt 0:14:52]} O-O {[%emt 0:05:36]} 13. e3 {[%emt 0:05:31]} a5 {[%emt 0:08:57]} 14. O-O {[%emt 0:00:21]} Nxe5 {[%emt 0:01:31]} 15. Nxe5 {[%emt 0:04:21]} Qe2 {[%emt 0:15:10]} 16. Rf2 {[%emt 0:00:16]} Qxe3 {[%emt 0:00:29]} 17. Nf3 {[%emt 0:00:40]} Qd3 {[%emt 0:00:17]} 18. Bf1 {[%emt 0:07:47]} b5 {[%emt 0:00:05]} 19. Bxd3 {[%emt 0:02:23]} bxa4 {[%emt 0:00:03]} 20. a3 {[%emt 0:00:13]} Rb8 {[%emt 0:03:07]} 21. Re1 {[%emt 0:06:38]} c5 {[%emt 0:00:28]} 22. dxc5 {[%emt 0:00:49]} Bxc5 {[%emt 0:00:02]} 23. Nd4 {[%emt 0:00:07]} Bd7 {[%emt 0:00:40]} 24. Kg2 {[%emt 0:00:24]} Bxd4 {[%emt 0:06:02]} 25. cxd4 {[%emt 0:00:04]} Rb3 {[%emt 0:00:08]} 26. Bf1 {[%emt 0:02:12]} Rc8 {[%emt 0:03:14]} 27. Rd2 {[%emt 0:00:06]} Kf7 {[%emt 0:00:11]} 28. Bd3 {[%emt 0:01:38]} Rcb8 {[%emt 0:00:44]} 29. Ree2 {[%emt 0:00:04]} Rxd3 {[%emt 0:02:38]} 30. Rxd3 {[%emt 0:00:04]} Bb5 {[%emt 0:00:06]} 31. Rdd2 {[%emt 0:00:07]} Bxe2 {[%emt 0:00:02]} 32. Rxe2 {[%emt 0:00:15]} Rb3 {[%emt 0:00:05]} 33. Rd2 {[%emt 0:00:04]} g5 {[%emt 0:00:25]} 34. Kf2 {[%emt 0:00:57]} Kg6 {[%emt 0:01:02]} 35. Re2 {[%emt 0:00:15]} Kf6 {[%emt 0:00:02]} 36. Rd2 {[%emt 0:00:05]} g4 {[%emt 0:03:03]} 37. Kg2 {[%emt 0:02:54]} h5 {[%emt 0:00:03]} 38. h4 {[%emt 0:00:35]} Ke7 {[%emt 0:00:53]} 39. Kf2 {[%emt 0:00:12]} Kd6 {[%emt 0:00:24]} 40. Kg2 {[%emt 0:00:00]} Re3 {[%emt 0:00:00]} 41. Kf2 {[%emt 0:00:52]} Re4 {[%emt 0:04:40]} 42. Rd3 {[%emt 0:09:00]} Kc6 {[%emt 0:00:03]} 43. Rc3+ {[%emt 0:00:11]} Kb7 {[%emt 0:00:14]} 44. Rc5 {[%emt 0:00:54]} Rxd4 {[%emt 0:00:43]} 45. Rxa5 {[%emt 0:00:24]} Rd2+ {[%emt 0:00:18]} 46. Kf1 {[%emt 0:00:44]} Rxb2 {[%emt 0:00:12]} 47. Rxa4 {[%emt 0:00:04]} Ra2 {[%emt 0:00:23]} 48. Kg1 {[%emt 0:00:15]} Kb6 {[%emt 0:00:19]} 49. Ra8 {[%emt 0:00:07]} d4 {[%emt 0:00:41]} 50. Kf1 {[%emt 0:00:33]} Kc5 {[%emt 0:00:12]} 51. Ra5+ {[%emt 0:00:16]} Kc4 {[%emt 0:00:23]} 52. Re5 {[%emt 0:00:05]} Rxa3 {[%emt 0:02:11]} 0-1

[Event "ROU-chT 1st League 2019"]
[Site "Mamaia"]
[Date "2019.09.26"]
[Round "6.27"]
[White "Mateuta, Gabriel"]
[Black "Oltean, Liviu-Ioan"]
[Result "1-0"]
[ECO "A43"]
[WhiteElo "2514"]
[BlackElo "2313"]
[Annotator "ChessBase"]
[PlyCount "118"]
[EventDate "2019.09.21"]
[EventType "team-tourn"]
[EventCountry "ROU"]
[SourceTitle "playchess.com"]
[Source "ChessBase"]
[SourceQuality "1"]
[TimeControl "40/5400+30:1800+30"]

1. d4 {[%emt 0:00:00]} Nf6 {[%emt 0:00:05]} 2. Nf3 {[%emt 0:00:18]} c5 {[%emt 0:02:21]} 3. d5 {[%emt 0:00:21]} d6 {[%emt 0:00:11]} 4. Nc3 {[%emt 0:00:32]} g6 {[%emt 0:04:48]} 5. e4 {[%emt 0:00:52]} Bg7 {[%emt 0:00:11]} 6. Bb5+ {[%emt 0:00:13]} Bd7 {[%emt 0:00:44]} 7. a4 {[%emt 0:00:08]} O-O {[%emt 0:00:27]} 8. O-O {[%emt 0:03:55]} a6 {[%emt 0:07:35]} 9. Be2 {[%emt 0:00:48]} Bg4 {[%emt 0:00:22]} 10. Nd2 {[%emt 0:01:05]} Bxe2 {[%emt 0:00:33]} 11. Qxe2 {[%emt 0:00:07]} Nbd7 {[%emt 0:00:11]} 12. a5 {[%emt 0:00:54]} Ne8 {[%emt 0:07:41]} 13. Nc4 {[%emt 0:01:44]} Nc7 {[%emt 0:00:38]} 14. Na4 {[%emt 0:05:39]} Nb5 {[%emt 0:07:20]} 15. c3 {[%emt 0:00:47]} e5 {[%emt 0:08:35]} 16. dxe6 {[%emt 0:25:18]} fxe6 {[%emt 0:00:14]} 17. Nab6 {[%emt 0:00:14]} Nxb6 18. Nxb6 {[%emt 0:00:08]} Rb8 {[%emt 0:04:33]} 19. Be3 {[%emt 0:00:47]} Qe7 {[%emt 0:06:28]} 20. Rad1 {[%emt 0:01:11]} Rf7 {[%emt 0:02:59]} 21. Qc4 {[%emt 0:20:21]} Re8 {[%emt 0:00:47]} 22. Rd2 {[%emt 0:01:38]} Qc7 {[%emt 0:02:03]} 23. Qe2 {[%emt 0:05:59]} Qc6 {[%emt 0:05:11]} 24. Qg4 {[%emt 0:02:55]} Be5 {[%emt 0:18:23]} 25. Nc4 {[%emt 0:01:49]} Bg7 {[%emt 0:04:49]} 26. Rfd1 {[%emt 0:00:42]} Bf8 {[%emt 0:00:13]} 27. h4 {[%emt 0:01:17]} e5 {[%emt 0:01:53]} 28. Nb6 {[%emt 0:02:57]} Bg7 {[%emt 0:00:24]} 29. f3 {[%emt 0:02:32]} Qc7 {[%emt 0:03:38]} 30. Bg5 {[%emt 0:01:43]} h5 {[%emt 0:01:20]} 31. Qh3 {[%emt 0:03:00]} Kh7 {[%emt 0:02:01]} 32. Nc4 {[%emt 0:04:04]} Bf8 {[%emt 0:00:24]} 33. Nb6 {[%emt 0:00:53]} Qc6 {[%emt 0:02:21]} 34. Qg3 {[%emt 0:02:35]} Re6 {[%emt 0:02:00]} 35. Qf2 {[%emt 0:00:30]} Nc7 {[%emt 0:03:03]} 36. Qe2 {[%emt 0:03:20]} Qb5 {[%emt 0:00:29]} 37. Qc4 {[%emt 0:03:22]} Qxc4 {[%emt 0:02:01]} 38. Nxc4 {[%emt 0:00:02]} Nb5 {[%emt 0:00:16]} 39. Kf2 {[%emt 0:00:19]} Kg7 {[%emt 0:00:54]} 40. Ke2 {[%emt 0:00:00]} Rc7 {[%emt 0:00:00]} 41. Nb6 {[%emt 0:01:43]} Re8 {[%emt 0:02:51]} 42. Kd3 {[%emt 0:01:06]} Rc6 {[%emt 0:02:39]} 43. Kc2 {[%emt 0:00:41]} Kf7 {[%emt 0:02:01]} 44. g4 {[%emt 0:01:54]} Nc7 {[%emt 0:03:28]} 45. Nc4 {[%emt 0:02:23]} Nb5 {[%emt 0:02:14]} 46. Kb3 {[%emt 0:06:56]} Ke6 {[%emt 0:05:46]} 47. Rd5 {[%emt 0:07:25]} Rc7 {[%emt 0:05:07]} 48. gxh5 {[%emt 0:00:35]} gxh5 {[%emt 0:00:04]} 49. f4 {[%emt 0:00:05]} exf4 {[%emt 0:11:13]} 50. Bxf4 {[%emt 0:00:13]} Rh7 {[%emt 0:00:22]} 51. Bxd6 {[%emt 0:03:43]} Bxd6 {[%emt 0:00:15]} 52. Nxd6 {[%emt 0:00:07]} Nxd6 {[%emt 0:00:06]} 53. Rxd6+ {[%emt 0:00:04]} Ke5 {[%emt 0:00:11]} 54. Rd7 {[%emt 0:03:22]} Rxd7 {[%emt 0:01:05]} 55. Rxd7 {[%emt 0:00:01]} Kxe4 {[%emt 0:00:04]} 56. Rxb7 {[%emt 0:00:08]} Kd5 {[%emt 0:00:09]} 57. c4+ {[%emt 0:02:45]} Kd4 {[%emt 0:00:08]} 58. Rd7+ {[%emt 0:00:07]} Ke3 {[%emt 0:00:11]} 59. Rd5 {[%emt 0:00:21]} Re7 1-0

[Event "ROU-chT 1st League 2019"]
[Site "Mamaia"]
[Date "2019.09.26"]
[Round "6.28"]
[White "Talu, Mircea"]
[Black "Filip, Lucian-Ioan"]
[Result "1/2-1/2"]
[ECO "A62"]
[WhiteElo "2288"]
[BlackElo "2419"]
[Annotator "NA"]
[PlyCount "30"]
[EventDate "2019.09.21"]
[EventType "team-tourn"]
[EventCountry "ROU"]
[SourceTitle "playchess.com"]
[Source "ChessBase"]
[SourceQuality "1"]
[TimeControl "40/5400+30:1800+30"]

1. d4 {[%emt 0:00:00]} e6 {[%emt 0:00:00]} 2. c4 {[%emt 0:00:00]} Nf6 {[%emt 0:00:00]} 3. g3 {[%emt 0:00:00]} c5 {[%emt 0:00:02]} 4. d5 {[%emt 0:00:01]} exd5 {[%emt 0:00:04]} 5. cxd5 {[%emt 0:00:05]} d6 {[%emt 0:00:01]} 6. Nc3 {[%emt 0:00:09]} g6 {[%emt 0:00:03]} 7. Bg2 {[%emt 0:00:05]} Bg7 {[%emt 0:00:05]} 8. Nf3 {[%emt 0:00:06]} O-O {[%emt 0:00:03]} 9. O-O {[%emt 0:00:07]} Re8 {[%emt 0:00:03]} 10. Nd2 {[%emt 0:16:46]} b6 {[%emt 0:00:23]} 11. Re1 {[%emt 0:06:12]} Ba6 {[%emt 0:14:50]} 12. Qa4 {[%emt 0:10:18]} Bd3 {[%emt 0:25:10]} 13. Nc4 {[%emt 0:14:16]} Bxc4 {[%emt 0:07:18]} 14. Qxc4 {[%emt 0:00:08]} a6 {[%emt 0:00:02]} 15. Qh4 {[%emt 0:01:11]} Nbd7 {[%emt 0:18:52]} 1/2-1/2

[Event "ROU-chT 1st League 2019"]
[Site "Mamaia"]
[Date "2019.09.26"]
[Round "6.29"]
[White "Secheres, Adrian-Simion"]
[Black "Helmer, Janos"]
[Result "1-0"]
[ECO "E73"]
[WhiteElo "2397"]
[BlackElo "1990"]
[Annotator "NA"]
[PlyCount "65"]
[EventDate "2019.09.21"]
[EventType "team-tourn"]
[EventCountry "ROU"]
[SourceTitle "playchess.com"]
[Source "ChessBase"]
[SourceQuality "1"]
[TimeControl "40/5400+30:1800+30"]

1. d4 {[%emt 0:00:27]} Nf6 {[%emt 0:00:00]} 2. c4 {[%emt 0:00:12]} d6 {[%emt 0:01:10]} 3. Nc3 {[%emt 0:00:12]} g6 {[%emt 0:00:23]} 4. e4 {[%emt 0:00:12]} Bg7 {[%emt 0:00:06]} 5. Be2 {[%emt 0:00:35]} O-O {[%emt 0:02:49]} 6. Bg5 {[%emt 0:00:10]} Nbd7 {[%emt 0:03:23]} 7. Qd2 {[%emt 0:01:06]} c6 {[%emt 0:05:54]} 8. Nf3 {[%emt 0:03:29]} e5 {[%emt 0:04:16]} 9. O-O {[%emt 0:03:41]} Re8 {[%emt 0:08:06]} 10. d5 {[%emt 0:02:57]} Nc5 {[%emt 0:02:49]} 11. Qc2 {[%emt 0:00:33]} a5 {[%emt 0:00:24]} 12. Nd2 {[%emt 0:07:12]} Bd7 {[%emt 0:06:40]} 13. Rac1 {[%emt 0:05:17]} Rb8 {[%emt 0:05:16]} 14. a3 {[%emt 0:10:34]} cxd5 {[%emt 0:04:51]} 15. cxd5 {[%emt 0:01:42]} a4 {[%emt 0:04:37]} 16. Nb5 {[%emt 0:11:37]} Bf8 {[%emt 0:03:26]} 17. Be3 {[%emt 0:10:23]} Rc8 {[%emt 0:04:49]} 18. Bxc5 {[%emt 0:02:49]} Rxc5 {[%emt 0:03:14]} 19. Qxa4 {[%emt 0:00:14]} Qb6 {[%emt 0:01:25]} 20. Rxc5 {[%emt 0:01:32]} Qxc5 {[%emt 0:00:10]} 21. Bd3 {[%emt 0:02:24]} Rc8 {[%emt 0:09:18]} 22. Nb3 {[%emt 0:11:44]} Qb6 {[%emt 0:01:11]} 23. Qb4 {[%emt 0:03:15]} Nxe4 {[%emt 0:03:12]} 24. Qxe4 {[%emt 0:00:48]} f5 {[%emt 0:01:53]} 25. Qb4 {[%emt 0:02:20]} e4 {[%emt 0:01:11]} 26. Be2 {[%emt 0:02:34]} Rc2 {[%emt 0:01:12]} 27. N3d4 {[%emt 0:01:26]} Rc5 {[%emt 0:02:09]} 28. Nc3 {[%emt 0:01:05]} Qa7 {[%emt 0:02:08]} 29. Bb5 {[%emt 0:00:56]} Bc8 {[%emt 0:02:10]} 30. Ne6 {[%emt 0:02:48]} Bxe6 {[%emt 0:00:50]} 31. dxe6 {[%emt 0:00:01]} Be7 {[%emt 0:00:36]} 32. Qd4 {[%emt 0:01:53]} Qb6 {[%emt 0:01:54]} 33. Be8 {[%emt 0:01:39]} 1-0